Workbook

Sheet Attività di vendita settimanale
B1: ATTIVITÀ DI VENDITA SETTIMANALE | I1: VENDITORE | J1: Nome | L1: FINE SETTIMANA | M1: Data
I3: LUOGO | J3: Luogo | L3: DATA ODIERNA | M3: Data
B5: GIORNI | C5: IN UFFICIO DI VENDITA | D5: FUORI UFFICIO | E5: VISITE IN UFFICIO | F5: CHIAMATE ESTERNE | G5: TELEFONATE | H5: NUOVO CNT. TELEFONO | I5: SALE OSPITI | J5: RISTORAZIONE | K5: MTG. NOLEGGIO SALA | L5: ALTRO* | M5: TOTALE
B6: Lunedì | C6: 14.00 € | D6: 23.00 € | E6: 4.00 € | F6: 45.00 € | G6: 22.00 € | H6: 2.00 € | I6: 100.00 € | J6: 0.00 € | K6: 0.00 € | L6: 0.00 € | M6: =SUM(Attività[[#This Row],[IN UFFICIO DI VENDITA]:[ALTRO*]]) -> 210.00 €
B7: Martedì | C7: 23.00 € | D7: 76.00 € | E7: 10.00 € | F7: 50.00 € | G7: 54.00 € | H7: 45.00 € | I7: 80.00 € | J7: 0.00 € | K7: 0.00 € | L7: 0.00 € | M7: =SUM(Attività[[#This Row],[IN UFFICIO DI VENDITA]:[ALTRO*]]) -> 338.00 €
B8: Mercoledì | C8: 4.00 € | D8: 130.00 € | E8: 11.00 € | F8: 33.00 € | G8: 67.00 € | H8: 65.00 € | I8: 400.00 € | J8: 0.00 € | K8: 0.00 € | L8: 0.00 € | M8: =SUM(Attività[[#This Row],[IN UFFICIO DI VENDITA]:[ALTRO*]]) -> 710.00 €
B9: Giovedì | C9: 102.00 € | D9: 40.00 € | E9: 18.00 € | F9: 0.00 € | G9: 86.00 € | H9: 82.00 € | I9: 97.00 € | J9: 0.00 € | K9: 0.00 € | L9: 0.00 € | M9: =SUM(Attività[[#This Row],[IN UFFICIO DI VENDITA]:[ALTRO*]]) -> 425.00 €
B10: Venerdì | C10: 33.00 € | D10: 55.00 € | E10: 22.00 € | F10: 49.00 € | G10: 143.00 € | H10: 26.00 € | I10: 50.00 € | J10: 0.00 € | K10: 0.00 € | L10: 0.00 € | M10: =SUM(Attività[[#This Row],[IN UFFICIO DI VENDITA]:[ALTRO*]]) -> 378.00 €
B11: Sabato | C11: 0.00 € | D11: 0.00 € | E11: 0.00 € | F11: 0.00 € | G11: 0.00 € | H11: 0.00 € | I11: 0.00 € | J11: 0.00 € | K11: 0.00 € | L11: 0.00 € | M11: =SUM(Attività[[#This Row],[IN UFFICIO DI VENDITA]:[ALTRO*]]) -> 0.00 €
B12: Domenica | C12: 0.00 € | D12: 0.00 € | E12: 0.00 € | F12: 0.00 € | G12: 0.00 € | H12: 0.00 € | I12: 0.00 € | J12: 0.00 € | K12: 0.00 € | L12: 0.00 € | M12: =SUM(Attività[[#This Row],[IN UFFICIO DI VENDITA]:[ALTRO*]]) -> 0.00 €
B13: Totali | C13: =SUBTOTAL(109,Attività[IN UFFICIO DI VENDITA]) -> 176.00 € | D13: =SUBTOTAL(109,Attività[FUORI UFFICIO]) -> 324.00 € | E13: =SUBTOTAL(109,Attività[VISITE IN UFFICIO]) -> 65.00 € | F13: =SUBTOTAL(109,Attività[CHIAMATE ESTERNE]) -> 177.00 € | G13: =SUBTOTAL(109,Attività[TELEFONATE]) -> 372.00 € | H13: =SUBTOTAL(109,Attività[NUOVO CNT. TELEFONO]) -> 220.00 € | I13: =SUBTOTAL(105,Attività[SALE OSPITI]) -> 0.00 € | J13: =SUBTOTAL(109,Attività[RISTORAZIONE]) -> 0.00 € | K13: =SUBTOTAL(109,Attività[MTG. NOLEGGIO SALA]) -> 0.00 € | L13: =SUBTOTAL(109,Attività[ALTRO*]) -> 0.00 € | M13: =SUBTOTAL(109,Attività[TOTALE]) -> 2,061.00 €
B15: OBIETTIVO | C15: 200.00 € | D15: 400.00 € | E15: 300.00 € | F15: 65.00 € | G15: 500.00 € | H15: 300.00 € | I15: 400.00 € | J15: 600.00 € | K15: 300.00 € | L15: 300.00 € | M15: =SUM(C15:L15) -> 3,365.00 €
B16: SCOSTAMENTO | C16: =SUM(Attività[[#Totals],[IN UFFICIO DI VENDITA]]-C15) -> -24.00 € | D16: =SUM(Attività[[#Totals],[FUORI UFFICIO]]-D15) -> -76.00 € | E16: =SUM(Attività[[#Totals],[VISITE IN UFFICIO]]-E15) -> -235.00 € | F16: =SUM(Attività[[#Totals],[VISITE IN UFFICIO]]-F15) -> 0.00 € | G16: =SUM(Attività[[#Totals],[TELEFONATE]]-G15) -> -128.00 € | H16: =SUM(Attività[[#Totals],[NUOVO CNT. TELEFONO]]-H15) -> -80.00 € | I16: =SUM(Attività[[#Totals],[SALE OSPITI]]-I15) -> -400.00 € | J16: =SUM(Attività[[#Totals],[RISTORAZIONE]]-J15) -> -600.00 € | K16: =SUM(Attività[[#Totals],[MTG. NOLEGGIO SALA]]-K15) -> -300.00 € | L16: =SUM(Attività[[#Totals],[ALTRO*]]-L15) -> -300.00 € | M16: =SUM(C16:L16) -> -2,143.00 €
B18: *SPIEGAZIONE
B20: Approvazione
